Workbook

Sheet 貨物自動車運送事業者数の推移
A1: 貨物自動車運送事業者数の推移
B3: 年度別 | C3: 平成２８年度 | E3: 平成２９年度 | G3: 平成３０年度 | I3: 令和元年度 | K3: 令和２年度
A4: 事業種別 | D4: 前年比 | F4: 前年比 | H4: 前年比 | J4: 前年比 | L4: 前年比
A5: 茨城 | C5: =+C6+C8 -> 3135 | D5: =IFERROR(C5/A5,0) -> 0 | E5: =+E6+E8 -> 3118 | F5: =IFERROR(E5/C5,0) -> 0.9945773525 | G5: =+G6+G8 -> 3111 | H5: =IFERROR(G5/E5,0) -> 0.9977549711 | I5: 3116 | J5: =IFERROR(I5/G5,0) -> 1.0016072 | K5: 3125 | L5: =IFERROR(K5/I5,0) -> 1.002888318
B6: 一般 | C6: 3134 | D6: =IFERROR(C6/A6,0) -> 0 | E6: 3117 | F6: =IFERROR(E6/C6,0) -> 0.9945756222 | G6: 3110 | H6: 0.9977542509 | I6: 3115 | J6: =IFERROR(I6/G6,0) -> 1.001607717 | K6: 3124 | L6: =IFERROR(K6/I6,0) -> 1.002889246
B7: 特積 | C7: 31 | D7: 0 | E7: 31 | F7: 1 | G7: 31 | H7: 1 | I7: 30 | J7: 0.9677419355 | K7: 30 | L7: =IFERROR(K7/I7,0) -> 1
B8: 特定 | C8: 1 | D8: 0 | E8: 1 | F8: 1 | G8: 1 | H8: 1 | I8: 1 | J8: 1 | K8: 1 | L8: 1
A9: 栃木 | C9: =+C10+C12 -> 1651 | D9: 0 | E9: =+E10+E12 -> 1665 | F9: 1.008479709 | G9: =+G10+G12 -> 1664 | H9: 0.9993993994 | I9: 1667 | J9: 1.001802885 | K9: 1666 | L9: 0.99940012
B10: 一般 | C10: 1649 | D10: 0 | E10: 1663 | F10: 1.008489994 | G10: 1662 | H10: 0.9993986771 | I10: 1666 | J10: 1.002406739 | K10: 1665 | L10: 0.9993997599
B11: 特積 | C11: 52 | D11: 0 | E11: 52 | F11: 1 | G11: 26 | H11: 0.5 | I11: 26 | J11: 1 | K11: 26 | L11: 1
B12: 特定 | C12: 2 | D12: 0 | E12: 2 | F12: 1 | G12: 2 | H12: 1 | I12: 1 | J12: 0.5 | K12: 1 | L12: 1
A13: 群馬 | C13: =+C14+C16 -> 1589 | D13: 0 | E13: =+E14+E16 -> 1597 | F13: 1.005034613 | G13: =+G14+G16 -> 1615 | H13: 1.011271133 | I13: 1640 | J13: 1.015479876 | K13: 1657 | L13: 1.010365854
B14: 一般 | C14: 1588 | D14: 0 | E14: 1596 | F14: 1.005037783 | G14: 1614 | H14: 1.011278195 | I14: 1639 | J14: 1.015489467 | K14: 1656 | L14: 1.010372178
B15: 特積 | C15: 28 | D15: 0 | E15: 31 | F15: 1.107142857 | G15: 31 | H15: 1 | I15: 30 | J15: 0.9677419355 | K15: 30 | L15: 1
B16: 特定 | C16: 1 | D16: 0 | E16: 1 | F16: 1 | G16: 1 | H16: 1 | I16: 1 | J16: 1 | K16: 1 | L16: 1
A17: 埼玉 | C17: =+C18+C20 -> 4254 | D17: 0 | E17: =+E18+E20 -> 4178 | F17: 0.9821344617 | G17: =+G18+G20 -> 4196 | H17: 1.004308281 | I17: 5056 | J17: 1.204957102 | K17: 4902 | L17: 0.9695411392
B18: 一般 | C18: 4250 | D18: 0 | E18: 4174 | F18: 0.9821176471 | G18: 4192 | H18: 1.00431241 | I18: 5054 | J18: 1.205629771 | K18: 4900 | L18: 0.9695290859
B19: 特積 | C19: 83 | D19: 0 | E19: 84 | F19: 1.012048193 | G19: 85 | H19: 1.011904762 | I19: 98 | J19: 1.152941176 | K19: 111 | L19: 1.132653061
B20: 特定 | C20: 4 | D20: 0 | E20: 4 | F20: 1 | G20: 4 | H20: 1 | I20: 2 | J20: 0.5 | K20: 2 | L20: 1
A21: 千葉 | C21: =+C22+C24 -> 3801 | D21: 0 | E21: =+E22+E24 -> 3849 | F21: 1.012628256 | G21: =+G22+G24 -> 3897 | H21: 1.012470772 | I21: 3929 | J21: 1.008211445 | K21: 3953 | L21: 1.006108425
B22: 一般 | C22: 3785 | D22: 0 | E22: 3833 | F22: 1.012681638 | G22: 3881 | H22: 1.012522828 | I22: 3913 | J22: 1.008245298 | K22: 3937 | L22: 1.006133401
B23: 特積 | C23: 49 | D23: 0 | E23: 50 | F23: 1.020408163 | G23: 50 | H23: 1 | I23: 50 | J23: 1 | K23: 50 | L23: 1
B24: 特定 | C24: 16 | D24: 0 | E24: 16 | F24: 1 | G24: 16 | H24: 1 | I24: 16 | J24: 1 | K24: 16 | L24: 1
A25: 東京 | C25: =+C26+C28 -> 5884 | D25: 0 | E25: =+E26+E28 -> 5912 | F25: 1.004758668 | G25: =+G26+G28 -> 5838 | H25: 0.9874830853 | I25: 5858 | J25: 1.003425831 | K25: 5870 | L25: 1.002048481
B26: 一般 | C26: 5868 | D26: 0 | E26: 5896 | F26: 1.004771643 | G26: 5822 | H26: 0.987449118 | I26: 5843 | J26: 1.003607008 | K26: 5855 | L26: 1.00205374
B27: 特積 | C27: 99 | D27: 0 | E27: 101 | F27: 1.02020202 | G27: 101 | H27: 1 | I27: 101 | J27: 1 | K27: 103 | L27: 1.01980198
B28: 特定 | C28: 16 | D28: 0 | E28: 16 | F28: 1 | G28: 16 | H28: 1 | I28: 15 | J28: 0.9375 | K28: 15 | L28: 1
A29: 神奈川 | C29: =+C30+C32 -> 3875 | D29: 0 | E29: =+E30+E32 -> 3892 | F29: 1.004387097 | G29: =+G30+G32 -> 3918 | H29: 1.00668037 | I29: 3953 | J29: 1.008933129 | K29: 3985 | L29: 1.008095118
B30: 一般 | C30: 3869 | D30: 0 | E30: 3886 | F30: 1.0043939 | G30: 3912 | H30: 1.006690685 | I30: 3948 | J30: 1.009202454 | K30: 3980 | L30: 1.00810537
B31: 特積 | C31: 71 | D31: 0 | E31: 71 | F31: 1 | G31: 72 | H31: 1.014084507 | I31: 73 | J31: 1.013888889 | K31: 73 | L31: 1
B32: 特定 | C32: 6 | D32: 0 | E32: 6 | F32: 1 | G32: 6 | H32: 1 | I32: 5 | J32: 0.8333333333 | K32: 5 | L32: 1
A33: 山梨 | C33: =+C34 -> 635 | D33: 0 | E33: =+E34 -> 637 | F33: 1.003149606 | G33: =+G34 -> 637 | H33: 1 | I33: 611 | J33: 0.9591836735 | K33: 613 | L33: 1.003273322
B34: 一般 | C34: 635 | D34: 0 | E34: 637 | F34: 1.003149606 | G34: 637 | H34: 1 | I34: 611 | J34: 0.9591836735 | K34: 613 | L34: 1.003273322
B35: 特積 | C35: 11 | D35: 0 | E35: 11 | F35: 1 | G35: 11 | H35: 1 | I35: 10 | J35: 0.9090909091 | K35: 10 | L35: 1
B36: 特定 | C36: 0 | D36: 0 | E36: 0 | F36: 0 | G36: 0 | H36: 0 | I36: 0 | J36: =IFERROR(I36/G36,0) -> 0 | K36: 0 | L36: =IFERROR(K36/I36,0) -> 0
A37: 合計 | C37: =SUM(C38,C40) -> 24824 | D37: 0 | E37: =SUM(E38,E40) -> 24848 | F37: 1.000966806 | G37: =SUM(G38,G40) -> 24876 | H37: 1.001126851 | I37: 25830 | J37: 1.038350217 | K37: 25771 | L37: 0.9977158343
B38: 一般 | C38: =C34+C10+C6+C22+C14+C18+C30+C26 -> 24778 | D38: 0 | E38: =E34+E10+E6+E22+E14+E18+E30+E26 -> 24802 | F38: 1.000968601 | G38: =G34+G10+G6+G22+G14+G18+G30+G26 -> 24830 | H38: 1.001128941 | I38: 25789 | J38: 1.038622634 | K38: 25730 | L38: 0.9977122029
B39: 特積 | C39: =C35+C11+C7+C23+C15+C19+C31+C27 -> 424 | D39: 0 | E39: =E35+E11+E7+E23+E15+E19+E31+E27 -> 431 | F39: 1.016509434 | G39: =G35+G11+G7+G23+G15+G19+G31+G27 -> 407 | H39: 0.9443155452 | I39: 418 | J39: 1.027027027 | K39: 433 | L39: 1.035885167
B40: 特定 | C40: =C36+C12+C8+C24+C16+C20+C32+C28 -> 46 | D40: 0 | E40: =E36+E12+E8+E24+E16+E20+E32+E28 -> 46 | F40: 1 | G40: =G36+G12+G8+G24+G16+G20+G32+G28 -> 46 | H40: 1 | I40: 41 | J40: =IFERROR(I40/G40,0) -> 0.8913043478 | K40: 41 | L40: =IFERROR(K40/I40,0) -> 1
A41: 注）「特積」欄は、「一般」欄の内数を示す。
